Cogmind - Beta 11 @@@ ROGUE MODE // 2022.04.01 @ 20:12:21 Player: ktur Result: Destroyed by H-66 Slayer with Gauss Rifle Performance ------------- Evolutions (4) 2000 Regions Visited (10) 2000 Robots Destroyed (97) 485 Value Destroyed (3491) 3491 Prototype IDs (22) 440 Alien Tech Used (1) 200 Bonus (370) 370 TOTAL SCORE: 8986 Bonus ------- High Alert Combat Kills 74 Follower Combat Kills 80 Met Data Miner 300 Friendly Fire -84 Cogmind --------- Core Integrity 0/850 Matter 277/300 Energy 286/300 System Corruption 21% Temperature Cool (9) Movement Walking (114) Location -6/Factory Parts ------- > --- POWER (1) -------- Angular Momentum Engine > --- PROPULSION (5) --- Armored Leg Armored Leg Armored Leg Improved VSS Leg Enhanced Flexi-carbon Leg > --- UTILITY (8) ------ Large Storage Unit Makeshift Terrain Scan Processor Advanced Targeting Computer Improved Target Analyzer Improved Medium Armor Plating Improved Medium Armor Plating Hacking Suite Makeshift Hacking Suite > --- WEAPON (2) ------- Cooled Plasma Cannon Rocket Array > --- INVENTORY (15) --- Light Antimatter Reactor Improved VSS Leg Improved VSS Leg High-capacity Storage Unit Improved Terrain Scanner Core Analyzer Energy Filter Improved Utility Shielding Focal Shield Experimental Thermal Shield Improved Shield Generator Cooled Particle Cannon Cooled Plasma Cannon Cooled Plasma Cannon Heavy Rocket Launcher Peak State ------------ > --- POWER ------------ Angular Momentum Engine > --- PROPULSION ------- Flexi-carbon Leg Flexi-carbon Leg Flexi-carbon Leg Enhanced Flexi-carbon Leg Enhanced Flexi-carbon Leg > --- UTILITY ---------- Improved Heat Sink High-capacity Storage Unit Makeshift Terrain Scan Processor Advanced Targeting Computer Improved Target Analyzer Improved Medium Armor Plating Hacking Suite Makeshift Hacking Suite > --- WEAPON ----------- Cooled Plasma Cannon Cooled Plasma Cannon > --- INVENTORY -------- Light Antimatter Reactor Improved VSS Leg Large Storage Unit High-capacity Matter Pod Compact Matter Pod Structural Scanner Improved Terrain Scanner Core Analyzer Energy Filter Improved Utility Shielding Improved Medium Armor Plating Focal Shield Experimental Thermal Shield Improved Shield Generator Cooled Particle Cannon Cooled Plasma Cannon Cooled Plasma Cannon Heavy Rocket Launcher Rocket Array [Rating: 81] Favorites ----------- Power Improved Deuterium Engine Engine Improved Deuterium Engine Power Core Micro Nuclear Core Reactor Antimatter Reactor Propulsion Titanium Leg Treads Light Treads Leg Titanium Leg Hover Unit Improved Hover Unit Utility High-capacity Storage Unit Device Structural Scanner Storage High-capacity Storage Unit Processor Advanced Visual Processing Unit Hackware Makeshift Hacking Suite Protection Improved Medium Armor Plating Weapon Pulse Rifle Energy Gun Pulse Rifle Energy Cannon Phase Cannon Ballistic Gun Assault Rifle Launcher Rocket Array Build | -11 -10 -10 -9 -8 -7 -7 -7 -7 -6 -6 ------- Run | Scr Mat Min Mat Mat Fac Low Low Dat Pro Fac Slots Evolved 8 | . . . 2 2 2 . . . . 2 Power . | . . . . . . . . . . . Propulsion 3 | . . . 1 1 1 . . . . . Utility 5 | . . . 1 1 1 . . . . 2 Weapon . | . . . . . . . . . . . Parts Attached 137 | 6 2 5 14 33 12 8 8 2 1 46 Power 12 | 1 . 1 1 4 . 1 . . . 4 Engine 10 | 1 . 1 1 4 . 1 . . . 2 Core 1 | . . . . . . . . . . 1 Reactor 1 | . . . . . . . . . . 1 Propulsion 43 | 2 . . 3 14 4 3 . . 1 16 Treads 14 | 2 . . 3 9 . . . . . . Leg 27 | . . . . 4 4 3 . . 1 15 Wheel . | . . . . . . . . . . . Hover 2 | . . . . 1 . . . . . 1 Flight . | . . . . . . . . . . . Utility 35 | 1 2 . 6 8 3 . 2 . . 13 Device 8 | . . . 1 2 2 . 1 . . 2 Storage 7 | 1 1 . 1 2 . . . . . 2 Processor 8 | . 1 . 2 1 . . 1 . . 3 Hackware 3 | . . . . . . . . . . 3 Protection 9 | . . . 2 3 1 . . . . 3 Artifact . | . . . . . . . . . . . Weapon 47 | 2 . 4 4 7 5 4 6 2 . 13 Energy Gun 18 | 2 . 1 4 5 . 3 1 1 . 1 Energy Cannon 18 | . . . . 1 3 1 4 1 . 8 Ballistic Gun 2 | . . 2 . . . . . . . . Ballistic Cannon . | . . . . . . . . . . . Launcher 9 | . . 1 . 1 2 . 1 . . 4 Special Weapon . | . . . . . . . . . . . Impact Weapon . | . . . . . . . . . . . Slashing Weapon . | . . . . . . . . . . . Piercing Weapon . | . . . . . . . . . . . Special Melee Weapon . | . . . . . . . . . . . Unidentified Prototypes 9 | . . . . 4 2 . 1 . . 2 Corrupted Parts 4 | . . . . . . 1 . . . 3 System Corruption 11 | . . . . . . 1 . . . 10 Parts Lost 30 | . . 3 2 2 . 1 . . . 22 Power 4 | . . 1 . 1 . . . . . 2 Propulsion 13 | . . . 1 . . 1 . . . 11 Utility 8 | . . . 1 1 . . . . . 6 Weapon 5 | . . 2 . . . . . . . 3 Highest Loss Streak 17 | . . 3 2 1 . 1 . . . 17 To Critical Strikes . | . . . . . . . . . . . Average Slot Usage (%) 93 | . 90 93 98 98 99 99 100 89 100 78 Engine 7 | . 14 13 11 8 7 7 7 7 7 3 Treads 9 | . 28 28 32 17 . . . . . . Leg 20 | . . . . 18 37 37 35 35 35 20 Device 7 | . . . 1 9 14 15 14 14 14 3 Storage 9 | . 14 14 11 13 7 7 7 7 7 6 Processor 12 | . 4 14 13 4 7 7 13 14 14 17 Hackware 2 | . . . . . . . . . . 9 Protection 5 | . . . 5 8 6 7 7 7 7 4 Energy Gun 9 | . 28 11 15 17 7 14 9 2 7 1 Energy Cannon 3 | . . . . . 6 . 4 2 7 6 Ballistic Gun 1 | . . 9 6 . . . . . . . Naked Turns . | . . . . . . . . . . . Heaviest Build 82 | 14 34 31 57 67 72 72 71 71 71 82 Greatest Support 116 | 40 40 40 60 86 79 83 81 81 81 116 Greatest Overweight (x) 15 | 1 . . . 1 . . . . . 15 Average Overweight (x) . | . . . . . . . . . . . Largest Inventory Capacity 20 | 8 15 15 20 20 20 20 20 20 20 20 Average Capacity 18 | 6 12 15 18 20 20 20 20 20 20 18 Most Carried 20 | 6 15 15 20 20 20 20 20 20 20 20 Average Carried 18 | 3 11 14 18 19 19 19 19 20 19 18 Final Capacity 20 | 8 15 15 20 20 20 20 20 20 20 15 Final Carried 20 | 6 15 14 20 20 20 20 20 20 20 15 Class Distribution -------------------- 82% | Mutant 7% | Hacker-Mutant 6% | Scavenger-Mutant Dominant Class ---------------- Mutant | -10/Materials Mutant | -10/Mines Mutant | -9/Materials Mutant | -8/Materials Mutant | -7/Factory Mutant | -7/Lower Caves Mutant | -7/Lower Caves Mutant | -7/Data Miner Mutant | -6/Proximity Caves Hacker-Mutant | -6/Factory Resources | -11 -10 -10 -9 -8 -7 -7 -7 -7 -6 -6 ----------- Run | Scr Mat Min Mat Mat Fac Low Low Dat Pro Fac Matter Collected 2520 | 205 20 404 240 357 106 159 53 . 202 774 Remotely . | . . . . . . . . . . . Salvage Created 3768 | . 20 43 512 796 199 362 21 . 90 1725 Parts 171 | . 1 2 37 31 12 15 5 . 4 64 Haulers Intercepted 9 | . . . 1 4 . . . . . 4 Recyclers Shooed 1 | . . . . . . . . . . 1 Parts Field Recycled . | . . . . . . . . . . . Retrieved Matter . | . . . . . . . . . . . Parts Self-Destructed 18 | . . . . . . 5 4 . 9 . Prevented 12 | . . . . . . 10 . . 2 . Kills | -11 -10 -10 -9 -8 -7 -7 -7 -7 -6 -6 ------- Run | Scr Mat Min Mat Mat Fac Low Low Dat Pro Fac Combat Hostiles Destroyed 79 | . . 8 8 14 7 6 3 . 3 30 Guns 25 | . . 1 7 12 . 2 . . 1 2 Cannons 17 | . . . . . 2 1 . . 2 12 AOE 30 | . . 7 1 1 4 . 3 . . 14 Classes Destroyed 14 | . 1 3 5 3 1 . . . . 1 Worker 5 | . . . 1 1 . . . . . 3 Tunneler 3 | . . 2 . . . . . . . 1 Hauler 9 | . . . 1 4 . . . . . 4 Recycler 1 | . . . . 1 . . . . . . Operator 4 | . 1 . 2 . . . . . . 1 Watcher 3 | . . . 3 . . . . . . . Swarmer 18 | . . . . 2 4 . 3 . 3 6 Grunt 32 | . . . 7 7 . 5 . . . 13 Brawler 1 | . . . . . . . . . . 1 Sentry 8 | . . . 1 4 1 . . . . 2 Demolisher 1 | . . 1 . . . . . . . . Hunter 5 | . . . . 1 1 . . . . 3 Programmer 7 | . . . . . 1 1 . . . 5 Assembled 7 | . . 7 . . . . . . . . Best Kill Streak 9 | . 1 9 4 5 5 3 3 . 2 9 Combat Bots Only 7 | . . 7 3 3 5 3 3 . 2 7 Max Kills in Single Turn 3 | . 1 2 1 2 2 1 1 . 1 3 Gunslinging . | . . . . . . . . . . . Exploded 3 | . . 2 1 1 2 . 1 . . 3 Melee . | . . . . . . . . . . . Uniques/NPCs Destroyed . | . . . . . . . . . . . Combat | -11 -10 -10 -9 -8 -7 -7 -7 -7 -6 -6 -------- Run | Scr Mat Min Mat Mat Fac Low Low Dat Pro Fac Damage Taken 6955 | . 13 453 273 1006 688 311 62 . 86 4063 Core 1138 | . . 79 37 18 120 14 . . . 870 Absorbed by Shields . | . . . . . . . . . . . Regen/Repaired (Parts) 262 | . . . . . 262 . . . . . Core Remaining (%) 86 | 100 . 68 90 96 . . . . 80 . Volleys Fired 279 | . 1 18 39 53 16 18 6 . 17 111 Largest 2 | . 2 2 2 2 2 2 1 . 2 2 Hottest 210 | . 80 80 126 126 128 110 65 . 140 210 Shots Fired 444 | . 2 20 78 104 21 35 6 . 23 155 Gun 268 | . 2 10 78 102 5 34 . . 6 31 Cannon 148 | . . . . . 13 1 3 . 17 114 Launcher 28 | . . 10 . 2 3 . 3 . . 10 Special . | . . . . . . . . . . . Kinetic 54 | . . 4 50 . . . . . . . Thermal 257 | . . . 2 102 18 1 3 . 17 114 Explosive 28 | . . 10 . 2 3 . 3 . . 10 Electromagnetic 105 | . 2 6 26 . . 34 . . 6 31 Robot Hit Streak 17 | . 1 5 8 12 11 17 . . 4 15 Robot Miss Streak 5 | . 1 3 2 2 5 3 1 . 2 4 Penetration Max . | . . . . . . . . . . . Secondary Targets 1 | . . . . 1 . . . . . . Max Gunslinging Chain 1 | . . . . 1 . . . . . . Shots Hit Robots 284 | . 1 7 48 79 11 26 . . 7 105 Core Hits 173 | . 1 17 26 33 9 8 5 . 5 69 Critical Kills 4 | . . . . . . . . . . 4 Critical Parts Destroyed . | . . . . . . . . . . . Critical Strikes 15 | . . . 1 5 1 3 . . . 5 Burn 6 | . . . . 5 1 . . . . . Meltdown 4 | . . . . . . . . . . 4 Corrupt 5 | . . . 1 . . 3 . . . 1 Melee Attacks . | . . . . . . . . . . . Impact . | . . . . . . . . . . . Slashing . | . . . . . . . . . . . Piercing . | . . . . . . . . . . . Sneak Attacks . | . . . . . . . . . . . Combat Hostiles . | . . . . . . . . . . . Follow-up Attacks . | . . . . . . . . . . . Damage Inflicted 10285 | 3 16 887 656 1452 552 683 261 . 203 5572 Guns 3141 | . 16 76 588 1401 66 527 . . 67 400 Cannons 3268 | . . . . . 203 65 . . 136 2864 Explosions 3749 | . . 811 68 20 271 91 261 . . 2227 Melee . | . . . . . . . . . . . Ramming 127 | 3 . . . 31 12 . . . . 81 Kinetic 392 | . . 53 339 . . . . . . . Thermal 5196 | . . . 86 1401 269 156 . . 136 3148 Explosive 3306 | . . 811 . 20 271 . 261 . . 1943 Electromagnetic 1264 | . 16 23 231 . . 527 . . 67 400 Impact . | . . . . . . . . . . . Slashing . | . . . . . . . . . . . Piercing . | . . . . . . . . . . . Highest Corruption 21 | . . . . . 2 3 3 3 3 21 Average Corruption 8 | . . . . . 1 2 3 3 3 16 Corruption Purged . | . . . . . . . . . . . Corruption Blocked . | . . . . . . . . . . . Effects 132 | . . . . . 9 11 8 1 19 84 Message Errors 31 | . . . . . 4 6 4 . 3 14 Matter Fused 30 | . . . . . 1 2 1 1 11 14 Heat Flow Errors 17 | . . . . . 2 1 1 . 2 11 Energy Discharges 16 | . . . . . . 2 . . 1 13 Data Loss (minor) 18 | . . . . . 1 . . . 1 16 Data Loss (major) 5 | . . . . . . . 1 . . 4 Misfires 3 | . . . . . 1 . . . . 2 Alerts 5 | . . . . . . . 1 . 1 3 Misdirections 1 | . . . . . . . . . . 1 Weapon Failures 6 | . . . . . . . . . . 6 Overload Shots 12 | . . . . . 1 1 . . . 10 Overflow Damage 132 | . . . 2 . . 6 . . . 124 Projectiles 97 | . . . . . . . . . . 97 Explosions 35 | . . . 2 . . 6 . . . 27 Melee . | . . . . . . . . . . . Knockbacks . | . . . . . . . . . . . Impact . | . . . . . . . . . . . Kinetic . | . . . . . . . . . . . Secondary . | . . . . . . . . . . . Self-Inflicted Damage 346 | . . 31 . . 47 . . . . 268 Shots 7 | . . 1 . . 1 . . . . 5 Rammed 4 | 2 . . . 2 . . . . . . Targets Rammed 23 | 2 . . . 3 1 . . . . 17 Kicked 19 | . . . . 1 1 . . . . 17 Crushed . | . . . . . . . . . . . Highest Temperature 339 | . 18 18 169 251 195 195 159 . 189 339 Average Temperature 79 | . 12 14 47 68 95 84 52 . 73 95 Received Heat Transfer 1995 | . 9 . 150 486 54 162 . . . 1134 Effects 2 | . . . . . . . . . . 2 Energy Bleed 2 | . . . . . . . . . . 2 Siege Activations . | . . . . . . . . . . . Robots Corrupted 4 | . . . . . . 3 . . . 1 Combat Hostiles 4 | . . . . . . 3 . . . 1 Parts Fried 4 | . 1 . 1 . . 2 . . . . Impact Corruptions . | . . . . . . . . . . . Robots Melted 6 | . . . . 1 1 . . . . 4 Combat Hostiles 3 | . . . . 1 1 . . . . 1 Parts Melted 22 | . . . . 6 . . . . 1 15 Heat Transferred 8321 | . . . 137 3367 481 150 . . 185 4001 Parts Sabotaged . | . . . . . . . . . . . Parts Stolen . | . . . . . . . . . . . Parts Stripped . | . . . . . . . . . . . Power Chain Reactions 6 | . . . 2 . . 1 . . . 3 Missiles Intercepted . | . . . . . . . . . . . Alert | -11 -10 -10 -9 -8 -7 -7 -7 -7 -6 -6 ------- Run | Scr Mat Min Mat Mat Fac Low Low Dat Pro Fac Peak Influence 587 | . 8 187 174 166 154 . . . . 587 Initial 9 | . . 3 . 9 . . . . . . Average 98 | . 5 46 84 67 80 . . . . 170 Maximum Alert Level 2 | . . . . . . . . . . 2 Low Security (%) 91 | 100 100 100 100 100 100 . . . . 72 Level 1 . | . . . . . . . . . . 2 Level 2 7 | . . . . . . . . . . 24 Level 3 . | . . . . . . . . . . . Level 4 . | . . . . . . . . . . . Level 5 . | . . . . . . . . . . . High Security . | . . . . . . . . . . . Max Security . | . . . . . . . . . . . Squads Dispatched 15 | . . . 2 . 3 . . . . 10 Investigation 1 | . . . . . 1 . . . . . Extermination 7 | . . . . . 2 . . . . 5 Reinforcement 7 | . . . 2 . . . . . . 5 Assault . | . . . . . . . . . . . Garrison . | . . . . . . . . . . . Intercept . | . . . . . . . . . . . Searches Triggered . | . . . . . . . . . . . Construction Impeded 1 | . . . . . . . . . . 1 Haulers Reinforced 2 | . . . . . . . . . . 2 Active Scanning Responses . | . . . . . . . . . . . Cargo Convoy Interrupts . | . . . . . . . . . . . Stealth | -11 -10 -10 -9 -8 -7 -7 -7 -7 -6 -6 --------- Run | Scr Mat Min Mat Mat Fac Low Low Dat Pro Fac Distress Signals . | . . . . . . . . . . . Communications Jammed . | . . . . . . . . . . . Distress Signals . | . . . . . . . . . . . Times Spotted 109 | . 3 8 16 19 8 9 3 . 7 36 Peak Tracking Total 12 | . 2 12 4 5 5 3 3 . 4 6 Tactical Retreats 8 | . . 2 1 . . 3 . . 1 1 Traps | -11 -10 -10 -9 -8 -7 -7 -7 -7 -6 -6 ------- Run | Scr Mat Min Mat Mat Fac Low Low Dat Pro Fac Traps Triggered 3 | . . . . 2 1 . . . . . Indirectly . | . . . . . . . . . . . Trap Hack Attempts . | . . . . . . . . . . . Triggered . | . . . . . . . . . . . Disarmed . | . . . . . . . . . . . Reprogrammed . | . . . . . . . . . . . Reused . | . . . . . . . . . . . Traps Extracted . | . . . . . . . . . . . Installed . | . . . . . . . . . . . Triggered . | . . . . . . . . . . . Machines | -11 -10 -10 -9 -8 -7 -7 -7 -7 -6 -6 ---------- Run | Scr Mat Min Mat Mat Fac Low Low Dat Pro Fac Machines Disabled 12 | . . . . . . . 1 . . 11 Max in Single Turn 1 | . . . . . . . 1 . . 1 Garrison Access 1 | . . . . . . . . . . 1 Machines Sabotaged . | . . . . . . . . . . . Garrisons Compromised . | . . . . . . . . . . . Overloaded Fab Kills . | . . . . . . . . . . . Hacking | -11 -10 -10 -9 -8 -7 -7 -7 -7 -6 -6 --------- Run | Scr Mat Min Mat Mat Fac Low Low Dat Pro Fac Machines Accessed 31 | . 3 1 1 5 7 2 2 4 . 6 Terminals 17 | . 3 1 1 4 4 . . . . 4 Fabricators . | . . . . . . . . . . . Repair Stations 2 | . . . . . 1 . . . . 1 Recycling Units 1 | . . . . . 1 . . . . . Scanalyzers 2 | . . . . 1 1 . . . . . Garrison Access 1 | . . . . . . . . . . 1 Total Hacks 111 | . 11 3 3 16 31 6 2 27 . 12 Successful 86 | . 7 2 2 10 24 6 2 27 . 6 Failed 25 | . 4 1 1 6 7 . . . . 6 Catastrophic 3 | . . 1 . . 2 . . . . . Database Lockouts . | . . . . . . . . . . . Manual 33 | . 8 3 2 12 3 . . . . 5 Terminals 48 | . 11 3 3 13 10 . . . . 8 Fabricators . | . . . . . . . . . . . Repair Stations 9 | . . . . . 7 . . . . 2 Recycling Units 1 | . . . . . 1 . . . . . Scanalyzers 16 | . . . . 3 13 . . . . . Garrison Access 2 | . . . . . . . . . . 2 Terminal Hacks 55 | . 6 2 2 3 3 6 2 27 . 4 Record 16 | . . . . . . 5 . 11 . . Part Schematic 10 | . . . . . . . . 9 . 1 Robot Schematic 4 | . . . . . . . . 4 . . Robot Analysis 3 | . 2 . 1 . . . . . . . Prototype ID Bank 5 | . . . . . 2 . . 3 . . Open Door 3 | . . . . . . 1 2 . . . Branch Access Points 2 | . . . . . 1 . . . . 1 Alert Level 1 | . . . . . . . . . . 1 Unreport Threat 9 | . 3 2 1 2 . . . . . 1 Hauler Manifests 2 | . 1 . . 1 . . . . . . Fabricator Hacks . | . . . . . . . . . . . Repair Station Hacks 7 | . . . . . 6 . . . . 1 Scan Component 4 | . . . . . 3 . . . . 1 Repair 3 | . . . . . 3 . . . . . Recycling Unit Hacks 1 | . . . . . 1 . . . . . Retrieve Components 1 | . . . . . 1 . . . . . Scanalyzer 15 | . . . . 3 12 . . . . . Insert Component 7 | . . . . 1 6 . . . . . Analyze 8 | . . . . 2 6 . . . . . Garrison Access Hacks 1 | . . . . . . . . . . 1 Seal Access 1 | . . . . . . . . . . 1 Unauthorized Hacks 7 | . 1 . . 4 2 . . . . . Terminals 7 | . 1 . . 4 2 . . . . . Track 1 | . . . . 1 . . . . . . Botnet 4 | . 1 . . 2 1 . . . . . Operators 2 | . . . . 1 1 . . . . . Fabricators . | . . . . . . . . . . . Repair Stations . | . . . . . . . . . . . Recycling Units . | . . . . . . . . . . . Scanalyzers . | . . . . . . . . . . . Garrison Access . | . . . . . . . . . . . Data Cores Recovered 1 | . 1 . . . . . . . . . Used . | . . . . . . . . . . . Hacking Detections 19 | . 2 1 1 5 5 . . . . 5 Full Trace Events . | . . . . . . . . . . . Feedback Events . | . . . . . . . . . . . Feedback Blocked . | . . . . . . . . . . . Robot Schematics Acquired 4 | . . . . . . . . 4 . . Robots Built . | . . . . . . . . . . . Authchips . | . . . . . . . . . . . Time . | . . . . . . . . . . . Total Robot Build Rating . | . . . . . . . . . . . Part Schematics Acquired 15 | . . . . . 5 . . 9 . 1 Parts Built . | . . . . . . . . . . . Authchips . | . . . . . . . . . . . Time . | . . . . . . . . . . . Total Part Build Rating . | . . . . . . . . . . . Parts Repaired 3 | . . . . . 3 . . . . . Time 120 | . . . . . 120 . . . . . Parts Recycled . | . . . . . . . . . . . Recycled Matter . | . . . . . . . . . . . Retrieved Matter . | . . . . . . . . . . . Retrieved Components 1 | . . . . . 1 . . . . . Parts Scanalyzed 5 | . . . . 1 4 . . . . . Part Schematics Acquired 5 | . . . . . 5 . . . . . Parts Damaged . | . . . . . . . . . . . Bothacking | -11 -10 -10 -9 -8 -7 -7 -7 -7 -6 -6 ------------ Run | Scr Mat Min Mat Mat Fac Low Low Dat Pro Fac Used RIF Installer . | . . . . . . . . . . . Robots Hacked . | . . . . . . . . . . . Non-combat . | . . . . . . . . . . . Combat . | . . . . . . . . . . . Robot Hacks Applied . | . . . . . . . . . . . Relay Couplers Released . | . . . . . . . . . . . Fabnet Peak Effective % . | . . . . . . . . . . . Robots Rewired . | . . . . . . . . . . . Allies Hacked . | . . . . . . . . . . . Hacks Repelled . | . . . . . . . . . . . Allies | -11 -10 -10 -9 -8 -7 -7 -7 -7 -6 -6 -------- Run | Scr Mat Min Mat Mat Fac Low Low Dat Pro Fac Total Allies 1 | . . . . . . . . . 1 . Largest Group 1 | . . . . . . . . . 1 . Highest-Rated Group 96 | . . . . . . . . . 96 . Highest-Rated Ally 96 | . . . . . . . . . 96 . Total Orders . | . . . . . . . . . . . Ally Attacks 9 | . . . . . . . . . 9 . Total Damage 236 | . . . . . . . . . 236 . Kills 4 | . . . . . . . . . 4 . Allies Corrupted . | . . . . . . . . . . . Allies Melted 1 | . . . . . . . 1 . . . Intel | -11 -10 -10 -9 -8 -7 -7 -7 -7 -6 -6 ------- Run | Scr Mat Min Mat Mat Fac Low Low Dat Pro Fac Robot Analysis Total 3 | . 2 . 1 . . . . . . . Derelict Logs Recovered 9 | . . 3 . . . 1 2 . 3 . Drone Launches . | . . . . . . . . . . . Drone Recoveries . | . . . . . . . . . . . Exploration | -11 -10 -10 -9 -8 -7 -7 -7 -7 -6 -6 ------------- Run | Scr Mat Min Mat Mat Fac Low Low Dat Pro Fac Turns Passed 8765 | 75 235 1227 828 1059 1049 593 578 104 889 2128 Spaces Moved 5156 | 43 138 694 390 548 693 392 434 80 622 1122 Core 18 | 11 . . . . . . . . . 7 Treads 1479 | 32 138 694 390 225 . . . . . . Legs 3659 | . . . . 323 693 392 434 80 622 1115 Wheels . | . . . . . . . . . . . Hover . | . . . . . . . . . . . Flight . | . . . . . . . . . . . Fastest Speed 50 | 50 160 160 160 125 124 124 126 126 126 112 Average Speed 141 | 134 160 160 160 145 124 125 126 126 126 153 Slowest Speed 800 | 160 160 160 160 240 124 128 126 126 126 800 Overloaded Moves . | . . . . . . . . . . . Propulsion Burnouts . | . . . . . . . . . . . Robots Hopped . | . . . . . . . . . . . Cave-ins Triggered 1 | . . . . . . . . . . 1 Exploration Rate (%) 46 | 3 24 98 24 42 19 68 61 73 70 28 Regions Visited 10 Branch Regions 5 Pre-discovered Areas 2 | . . 1 . . . . . 1 . . Known Exits Taken 5 | . 1 1 1 . 1 . . . 1 . Unknown Exits Taken 5 | 1 . . . 1 . 1 1 1 . . Scrap Searched 9 | . . 1 . . . 2 2 . 4 . Spaces Dug 66 | . . . . . 17 . 19 . 10 20 Terrain Destroyed 325 | . . 79 9 19 54 2 36 . 12 114 Melee . | . . . . . . . . . . . Projectile 31 | . . . . . 1 . 2 . 12 16 AOE 294 | . . 79 9 19 53 2 34 . . 98 Terrain Rammed . | . . . . . . . . . . . Walls Destroyed . | . . . . . . . . . . . Machines Disabled . | . . . . . . . . . . . Actions | -11 -10 -10 -9 -8 -7 -7 -7 -7 -6 -6 --------- Run | Scr Mat Min Mat Mat Fac Low Low Dat Pro Fac Total 6155 | 56 150 796 529 712 863 456 458 83 706 1346 Wait 348 | . . 66 47 16 123 28 3 . 57 8 Move 5146 | 42 137 693 389 547 692 391 433 79 621 1122 Hop . | . . . . . . . . . . . Pick Up 113 | 6 9 8 22 24 9 6 3 . 5 21 Fast Attach 55 | 6 2 . 5 13 6 . 3 2 . 18 Attach 39 | . . 3 5 8 3 3 1 . . 16 Detach 3 | . . . . 2 . . . . . 1 Swap 45 | . . 2 4 13 3 5 5 . 1 12 Drop 104 | . 1 6 18 33 10 5 4 2 5 20 Fire 279 | . 1 18 39 53 16 18 6 . 17 111 Melee . | . . . . . . . . . . . Ram . | . . . . . . . . . . . Kick 19 | . . . . 1 1 . . . . 17 Crush 4 | 2 . . . 2 . . . . . . Escape Stasis . | . . . . . . . . . . . Rewire . | . . . . . . . . . . . Trap . | . . . . . . . . . . . Miscellaneous . | . . . . . . . . . . . Route ------- -11/Scrapyard -10/Materials -10/Mines (discovered 3 exits: *Mat x2 / *Exi) -9/Materials (discovered 2 exits: *Mat x2) -8/Materials -7/Factory (discovered 3 exits: *Fac / *Low x2) -7/Lower Caves -7/Lower Caves (discovered 2 exits: Fac / *Dat) -7/Data Miner -6/Proximity Caves -6/Factory (discovered 4 exits: *Low x2 / Ext x2) History --------- Turn | Location | Event 8 | -11/Scrapyard | Discovered new exit (range 14) 76 | -11/Scrapyard | Entered Materials 287 | -10/Materials | Discovered new exit (range 16) 309 | -10/Materials | Build established: Mutant 310 | -10/Materials | Identified exit to Mines 311 | -10/Materials | Entered Mines 349 | -10/Mines | Received a Rocket Launcher from a helpful Derelict 392 | -10/Mines | Assembled infested the area 433 | -10/Mines | Destroyed 7 combat bots 661 | -10/Mines | Learned Materials security intel 760 | -10/Mines | Found a hidden stash of uninstalled traps 867 | -10/Mines | Discovered new exit (range 11) 876 | -10/Mines | Lost 3 parts (1p2w) 888 | -10/Mines | Identified exit to Materials 942 | -10/Mines | Learned location of 1 exit from Materials 1094 | -10/Mines | Deemed a non-threat by the Exiles lab entrance 1094 | -10/Mines | Discovered new exit (range 5) 1099 | -10/Mines | Identified exit to Exiles 1238 | -10/Mines | Discovered exit to Materials (range 3) 1393 | -10/Mines | Learned location of Zion (-6) 1538 | -10/Mines | Entered Materials 1538 | -9/Materials | Evolved 2 slots: Propulsion x1, Utility x1 1539 | -9/Materials | Identified exit to Materials 2342 | -9/Materials | Discovered exit to Materials (range 15) 2366 | -9/Materials | Entered another Materials area 2366 | -8/Materials | Evolved 2 slots: Propulsion x1, Utility x1 3398 | -8/Materials | Discovered new exit (range 18) 3425 | -8/Materials | Entered Factory 3425 | -7/Factory | Evolved 2 slots: Propulsion x1, Utility x1 3669 | -7/Factory | Discovered new exit (range 4) 3970 | -7/Factory | Repaired Titanium Leg 4016 | -7/Factory | Repaired Carbon-fiber Leg 4062 | -7/Factory | Repaired Imp. Medium Armor Plating 4342 | -7/Factory | Identified exit to Lower Caves 4427 | -7/Factory | Found Prototype Launcher 4427 | -7/Factory | Identified Rocket Array 4474 | -7/Factory | Entered Lower Caves 4480 | -7/Lower Caves | P-60 Hacker assimilated allied F0-7FR(S) 4860 | -7/Lower Caves | Learned Factory terminal intel 4895 | -7/Lower Caves | Learned location of 1 exit from Research 4895 | -7/Lower Caves | Learned 8 Factory zone layouts 4895 | -7/Lower Caves | Learned Armory terminal intel 4927 | -7/Lower Caves | Encountered a Warlord checkpoint 5052 | -7/Lower Caves | Discovered new exit (range 8) 5067 | -7/Lower Caves | Entered another Lower Caves area 5132 | -7/Lower Caves | Found Alien Artifact 5132 | -7/Lower Caves | Identified Core Expander 5132 | -7/Lower Caves | Installed Core Expander, added new Utility slot 5344 | -7/Lower Caves | Learned Factory machine intel 5433 | -7/Lower Caves | Identified exit to Factory 5636 | -7/Lower Caves | Discovered new exit (range 8) 5645 | -7/Lower Caves | Entered Data Miner 5645 | -7/Data Miner | Discovered new exit (range 6) 5665 | -7/Data Miner | Met Data Miner 5696 | -7/Data Miner | Learned location of Section 7 (-2) 5696 | -7/Data Miner | Acquired the access code to Warlord's prototype stash 5716 | -7/Data Miner | Received God Mode back door access code from Data Miner 5749 | -7/Data Miner | Entered Proximity Caves 5877 | -6/Proximity Caves | Received a Behemoth hack from an annoying Tinkerer 6119 | -6/Proximity Caves | Escorted by Enhanced Grunt 6252 | -6/Proximity Caves | Learned Factory trap positions 6292 | -6/Proximity Caves | Found Prototype Device 6306 | -6/Proximity Caves | Spotted B-75 Beast 6581 | -6/Proximity Caves | Learned Factory emergency access door positions 6622 | -6/Proximity Caves | Discovered exit to Factory (range 14) 6638 | -6/Proximity Caves | Entered Factory 6638 | -6/Factory | Evolved 2 slots: Utility x2 6639 | -6/Factory | Identified exit to Lower Caves 6641 | -6/Factory | Loaded intel: 97 trap records 6643 | -6/Factory | Loaded intel: 266 machine locations 6644 | -6/Factory | Loaded intel: 28 terminal locations 6750 | -6/Factory | Spotted B-75 Beast 7036 | -6/Factory | System corruption reached 10% 7092 | -6/Factory | Core integrity fell below 50% 7140 | -6/Factory | Lost 17 parts (1p9n4u3w) 7281 | -6/Factory | Identified exit to Extension 8008 | -6/Factory | Build established: Scavenger-Mutant 8057 | -6/Factory | Core integrity fell below 20% 8259 | -6/Factory | Crushed by falling debris 8266 | -6/Factory | Destroyed 7 combat bots 8526 | -6/Factory | Build established: Hacker-Mutant 8766 | -6/Factory | Destroyed by H-66 Slayer with Gauss Rifle Last Messages --------------- 08585_ U-05 Engineer lays Concrete. 08586_ Acquired 1 matter. 08587_ /W4UA9QGKW L0HZ=SFR2 08590_ K-01 Serf cleans the Pressure Siphon. 08604_ System corrupted: Energy discharge (-90). 08619_ System corrupted: Matter fused (-6). 08631_ U-05 Engineer lays Concrete. 08639_ System corrupted: IFF burst signal emitted. 08660_ System corrupted: Matter fused (-9). 08676_ System corrupted: Component data lost. 08691_ System corrupted: Heat flow error (+138). 08710_ K-01 Serf cleans the Terminal. 08711_ Connecting with Terminal... 08726_ System corrupted: Matter fused (-8). 08744_ System corrupted: Heat flow error (+206). 08758_ Connecting with Garrison Access... >>Seal Access door sealed. 08766_ Slug penetrates Wall. 08766_ Penetrated by Slug. Map ----- +----------------------------------------------------+ | ?????????????????????????????????????????????????? | | ?????????????????????????????????????????????????? | | ???????"""T"""???????????????????????????????????? | | ?????????????????????????????????????????????????? | | ?????????????????????????????????????????????????? | | ?????????????????????????????????????????????????? | | ?????????????????????????????????????????????????? | | ???????""""?""""?????????????????????????????????? | | ???????""""?""""?????????????????????????????????? | | ???????""""?""""?????????????????????????????????? | | ???????""""?""""??????? ?????????????????????? | | ???????""""?""""?????h ?????????????????????? | | ???????""""?""""??# ?????????????????????? | | ??????????????????# ?????????????????????? | | ??????????????????# #?????????????????????? | | ??????????????????# #?????????????????????? | | ??????????????????# #?????????????????????? | | ??????????????????# #?????????????????????? | | ???????????+??"""?# #?????????????????????? | | ??????????????"""?# #?????????????????????? | | ??????????????"""?# #?????????????????????? | | ????####+###???""?# #?????????????????????? | | ????# ! #???""?+ #?????"""""""?????????? | | ????# #??????# ^ ^ ^#?????"""""""?????????? | | ????# """ #??????#^ ^ ^ #?????"""""""?????????? | | ????# """ ######## @ #?????"""""""?????????? | | ????# """ + #???????????????+?????? | | ????# # #?????"""""""?????"""?" | | ????# """ + """ """ #?????"""""""?????"""?" | | ????#! """ # """ "G" #?????"""""""?????"""?" | | ##### """ # """ " " #?????"""""""?????????? | | / # #?????????????????????? | | ##### """ # """ """ #?????????????????????? | | ????# """ # """ """ ????????????????? | | ????# """ # """ """ ??????????????? | | ????# # ????????????? | | ????######## """ """ ?????????????? | | ???????????# """ """ ?????????????? | | ???????????# """ """ #########?????????????? | | ?????????T?# #?????????????????????? | | ??????^????? """ """ #?????????????????????? | | ???????????? """ """ #?????????????????????? | | ???????????? """ """ #?????????????????????? | | ??????^^???? ??? ?? ?????????????????????? | | ??????^???????"""?""" ####?????????????????????? | | ???????^??????"""?""" !#????????????????????????? | | ??????????????"""?""" ?????????????????????????? | | ???????^?????????????????????????????????????????? | | ?????????????????????????????????????????????????? | | ?????????????????????????????????????????????????? | +----------------------------------------------------+ Best States ------------- Heat Dissipation 59 Coolant Potential 65 Energy Generation 21 Energy Capacity 325 Matter Stores 500 Matter Capacity 500 Sight Range 20 Terrain Scan Range 16 Terrain Scan Density 135 Armor Coverage 450 Evasion (%) 55 Targeting Accuracy 8 Target Analysis 8 Recoil Reduction 4 Offensive Hacking 21 Defensive Hacking 10 Item Schematics ----------------- Matter Filter | -7/Factory | Scanalyzed Imp. Medium Armor Plating | -7/Factory | Scanalyzed Imp. Shield Generator | -7/Factory | Scanalyzed Imp. Utility Shielding | -7/Factory | Scanalyzed Imp. Terrain Scanner | -7/Factory | Scanalyzed Combat Drone Bay | -7/Data Miner | Free Lgt. Regenerative Plating | -7/Data Miner | Free Cld. Cesium-ion Thruster | -7/Data Miner | Free Exp. Power Shielding | -7/Data Miner | Free Antimatter Cannon | -7/Data Miner | Free Field Propulsion Drive | -7/Data Miner | Free Lyr. Heavy Armor Plating | -7/Data Miner | Free Mass Driver | -7/Data Miner | Free Phase Gun | -7/Data Miner | Free Adv. Plasma Cannon | -6/Factory | Hacked Robot Schematics ------------------ A-15 Conveyor | -7/Data Miner | Free R-10 Processor | -7/Data Miner | Free B-48 Gladiator | -7/Data Miner | Free L-41 Fighter | -7/Data Miner | Free Fabricated ------------ Nothing Alien Tech Used ----------------- Core Expander Achievements -------------- Overkill Challenges ------------ None Game ------ Seed LayeredAluminumInverter Manual? 0 Play Time 01:05:06 Cumulative 295.3 hours Start 2022.04.01 @ 19:06:12 End 2022.04.01 @ 20:12:21 Sessions 1 Manual Loads 0 Difficulty Rogue Special Mode None Game No. 329 Rogue 329 Adventurer 0 Explorer 0 Win Type - Total 15 Types 10/1/2/2/0/0/0/0/0 Lore% 86 Gallery% 81 Achievement% 73 Wizard Run 0 Options --------- ASCII 0 Keyboard 0 Movement Arrows Keybinds 0 Fullscreen 1 Font 18/Smallcaps Map View 76x50 Tactical HUD 1 Map Filters NONE Filters NONE Steam 1 RUN: 98344b34-b327-4811-a567-7b7cb8b0b678